[Event "Un Sabato di Lampo"]
[Site "Chess.com"]
[Date "2020.04.11"]
[Round "3"]
[White "SpessoInstabile"]
[Black "sirmale49"]
[Result "1-0"]
[WhiteElo "1311"]
[BlackElo "1420"]
[TimeControl "300+2"]
[EndTime "6:30:09 PDT"]
[Termination "SpessoInstabile ha vinto per scaccomatto"]

1. d4 {[%clk 0:05:01.4]} 1... d5 {[%clk 0:04:52.3]} 2. c4 {[%clk 0:05:00.5]}
2... e5 {[%clk 0:04:51.7]} 3. Nf3 {[%clk 0:04:59.8]} 3... Nc6 {[%clk 0:04:47.3]}
4. e3 {[%clk 0:05:00.5]} 4... Bb4+ {[%clk 0:04:43.2]} 5. Nc3 {[%clk 0:05:00.3]}
5... Be6 {[%clk 0:04:36.9]} 6. cxd5 {[%clk 0:05:01.2]} 6... Bxd5 {[%clk
0:04:33.5]} 7. Bb5 {[%clk 0:05:00.7]} 7... e4 {[%clk 0:04:20.3]} 8. Nd2 {[%clk
0:05:00]} 8... f5 {[%clk 0:04:19.1]} 9. Bxc6+ {[%clk 0:05:01.1]} 9... Bxc6
{[%clk 0:04:15]} 10. d5 {[%clk 0:04:53.6]} 10... Bd7 {[%clk 0:04:06.4]} 11. Qb3
{[%clk 0:04:49.7]} 11... Bxc3 {[%clk 0:03:53.3]} 12. bxc3 {[%clk 0:04:50.2]}
12... Rb8 {[%clk 0:03:48.9]} 13. Ba3 {[%clk 0:04:46.6]} 13... Nf6 {[%clk
0:03:45.8]} 14. O-O {[%clk 0:04:45.6]} 14... c6 {[%clk 0:03:24.7]} 15. c4 {[%clk
0:04:46.4]} 15... Kf7 {[%clk 0:03:12.2]} 16. Bd6 {[%clk 0:04:45.4]} 16... Rc8
{[%clk 0:02:52.7]} 17. dxc6 {[%clk 0:04:46.3]} 17... Bxc6 {[%clk 0:02:48.2]} 18.
c5+ {[%clk 0:04:47.3]} 18... Kg6 {[%clk 0:02:48.5]} 19. Qc3 {[%clk 0:04:37.7]}
19... Nd5 {[%clk 0:02:29.2]} 20. Qb2 {[%clk 0:04:33.9]} 20... h5 {[%clk
0:02:18.3]} 21. Rad1 {[%clk 0:04:34.2]} 21... h4 {[%clk 0:02:17.7]} 22. h3
{[%clk 0:04:35.3]} 22... Qd7 {[%clk 0:02:01]} 23. Qa3 {[%clk 0:04:33.1]} 23...
a6 {[%clk 0:01:58.6]} 24. f3 {[%clk 0:04:32.8]} 24... Bb5 {[%clk 0:01:38]} 25.
Rf2 {[%clk 0:04:31.1]} 25... Rhe8 {[%clk 0:01:24.8]} 26. fxe4 {[%clk 0:04:01]}
26... fxe4 {[%clk 0:01:19.1]} 27. Rdf1 {[%clk 0:03:58.7]} 27... Re6 {[%clk
0:01:07.3]} 28. Rf7 {[%clk 0:03:44.8]} 28... Qd8 {[%clk 0:00:55.6]} 29. Qb2
{[%clk 0:03:45]} 29... Qg5 {[%clk 0:00:45.2]} 30. Qxg7+ {[%clk 0:03:45.1]} 30...
Kh5 {[%clk 0:00:40.3]} 31. R1f5 {[%clk 0:03:44.7]} 31... Qxf5 {[%clk 0:00:20.1]}
32. Rxf5# {[%clk 0:03:45.4]} 1-0

[Event "Un Sabato di Lampo"]
[Site "Chess.com"]
[Date "2020.04.11"]
[Round "3"]
[White "BungalowBill"]
[Black "mr6701"]
[Result "1-0"]
[WhiteElo "1652"]
[BlackElo "2092"]
[TimeControl "300+2"]
[EndTime "6:33:13 PDT"]
[Termination "BungalowBill ha vinto per abbandono"]

1. d4 {[%clk 0:05:01.9]} 1... d5 {[%clk 0:05:00.8]} 2. c4 {[%clk 0:05:02.7]}
2... e6 {[%clk 0:05:01.7]} 3. cxd5 {[%clk 0:05:03.7]} 3... exd5 {[%clk
0:05:02.1]} 4. Nc3 {[%clk 0:05:05.3]} 4... Nf6 {[%clk 0:05:03.1]} 5. Bg5 {[%clk
0:05:06.8]} 5... Be7 {[%clk 0:05:04.2]} 6. f3 {[%clk 0:05:08.3]} 6... h6 {[%clk
0:05:05.4]} 7. Bh4 {[%clk 0:05:08]} 7... O-O {[%clk 0:05:06.4]} 8. e3 {[%clk
0:05:09]} 8... Nh5 {[%clk 0:05:00.9]} 9. Bf2 {[%clk 0:05:09.2]} 9... Re8 {[%clk
0:04:55.3]} 10. Bd3 {[%clk 0:05:08.9]} 10... Bh4 {[%clk 0:04:53.3]} 11. g3
{[%clk 0:05:09.4]} 11... Bg5 {[%clk 0:04:50.4]} 12. f4 {[%clk 0:05:07.5]} 12...
Bf6 {[%clk 0:04:46.6]} 13. Qxh5 {[%clk 0:05:08.3]} 13... Bxd4 {[%clk 0:04:45.6]}
14. Nd1 {[%clk 0:04:54.2]} 14... Bxe3 {[%clk 0:04:40.9]} 15. Ne2 {[%clk
0:04:35.1]} 15... Nc6 {[%clk 0:04:27.1]} 16. Bxe3 {[%clk 0:04:30.3]} 16... Rxe3
{[%clk 0:04:26.9]} 17. Nxe3 {[%clk 0:04:30.4]} 17... Qe8 {[%clk 0:04:23.5]} 18.
Qf3 {[%clk 0:04:29.4]} 18... Nb4 {[%clk 0:04:21.1]} 19. Bb1 {[%clk 0:04:27.2]}
19... c5 {[%clk 0:04:13.4]} 20. a3 {[%clk 0:04:25.5]} 20... Nc6 {[%clk
0:04:07.4]} 21. O-O {[%clk 0:04:15.7]} 21... g6 {[%clk 0:04:00]} 22. Nxd5 {[%clk
0:04:12.8]} 22... Qd8 {[%clk 0:03:49.9]} 23. Nec3 {[%clk 0:03:51.1]} 23... Be6
{[%clk 0:03:50.1]} 24. Be4 {[%clk 0:03:47.6]} 24... Nd4 {[%clk 0:03:50.7]} 25.
Qg2 {[%clk 0:03:41.9]} 25... a6 {[%clk 0:03:43.3]} 26. Rad1 {[%clk 0:03:41.1]}
26... b5 {[%clk 0:03:43.6]} 27. Ne2 {[%clk 0:03:37]} 27... Nb3 {[%clk
0:03:35.8]} 28. Nf6+ {[%clk 0:03:23.6]} 28... Qxf6 {[%clk 0:03:35.6]} 29. Bxa8
{[%clk 0:03:24]} 29... Qxb2 {[%clk 0:03:33.4]} 30. Bf3 {[%clk 0:03:17.1]} 30...
Qxa3 {[%clk 0:03:32.3]} 31. Nc3 {[%clk 0:03:14.1]} 31... b4 {[%clk 0:03:30]} 32.
Rd8+ {[%clk 0:03:10.8]} 32... Kg7 {[%clk 0:03:23.8]} 33. Ne4 {[%clk 0:03:11.2]}
33... Qa5 {[%clk 0:03:19.8]} 34. Rfd1 {[%clk 0:03:09.6]} 34... Nd4 {[%clk
0:03:20.5]} 35. Rd6 {[%clk 0:03:00.5]} 35... b3 {[%clk 0:03:13.5]} 36. Qb2
{[%clk 0:02:55.6]} 36... Kh7 {[%clk 0:03:07.2]} 37. Kg2 {[%clk 0:02:46.5]} 37...
Nc2 {[%clk 0:02:55.9]} 38. Nf6+ {[%clk 0:02:44.9]} 38... Kg7 {[%clk 0:02:52.3]}
39. Ne8+ {[%clk 0:02:45.7]} 39... Kf8 {[%clk 0:02:49]} 40. Bc6 {[%clk
0:02:24.5]} 40... Ne3+ {[%clk 0:02:36]} 41. Kg1 {[%clk 0:02:20.3]} 41... Nxd1
{[%clk 0:02:36.9]} 42. Qg7+ {[%clk 0:02:08.4]} 42... Ke7 {[%clk 0:02:35.7]} 43.
Qf6+ {[%clk 0:01:59.4]} 43... Kf8 {[%clk 0:02:35.9]} 44. Rxd1 {[%clk 0:01:58.5]}
44... c4 {[%clk 0:02:30.8]} 45. Nd6 {[%clk 0:01:54.9]} 45... Qc5+ {[%clk
0:02:31]} 46. Qd4 {[%clk 0:01:53.4]} 46... Qxc6 {[%clk 0:02:31.3]} 47. Ne4
{[%clk 0:01:49.1]} 47... Qc8 {[%clk 0:02:22.8]} 48. Qh8+ {[%clk 0:01:46.1]}
48... Ke7 {[%clk 0:02:23.2]} 49. Qf6+ {[%clk 0:01:47]} 49... Kf8 {[%clk
0:02:22.9]} 50. Rd8+ {[%clk 0:01:47.4]} 50... Qxd8 {[%clk 0:02:21.6]} 51. Qxd8+
{[%clk 0:01:48.3]} 51... Kg7 {[%clk 0:02:23.5]} 52. Qf6+ {[%clk 0:01:48.2]}
52... Kf8 {[%clk 0:02:24.7]} 53. f5 {[%clk 0:01:47.1]} 53... gxf5 {[%clk
0:02:24.2]} 54. Nd6 {[%clk 0:01:47.9]} 54... a5 {[%clk 0:02:20.8]} 55. Qd8+
{[%clk 0:01:45.8]} 55... Kg7 {[%clk 0:02:20.4]} 56. Qxa5 {[%clk 0:01:46.8]}
56... b2 {[%clk 0:02:16.8]} 57. Qc3+ {[%clk 0:01:47.3]} 57... Kf8 {[%clk
0:02:15.1]} 58. Qxb2 {[%clk 0:01:48]} 58... Ke7 {[%clk 0:02:17]} 59. Nb5 {[%clk
0:01:45]} 59... Kd7 {[%clk 0:02:16.2]} 60. Qd4+ {[%clk 0:01:45.4]} 60... Kc6
{[%clk 0:02:16.8]} 61. Nc3 {[%clk 0:01:44.5]} 61... h5 {[%clk 0:02:14.7]} 62.
Kf2 {[%clk 0:01:45.8]} 62... h4 {[%clk 0:02:14.8]} 63. gxh4 {[%clk 0:01:45.6]}
63... Kc7 {[%clk 0:02:08.7]} 64. h5 {[%clk 0:01:46.5]} 64... f4 {[%clk
0:02:09.3]} 65. h6 {[%clk 0:01:47.3]} 65... Bf5 {[%clk 0:02:10.2]} 66. Nd5+
{[%clk 0:01:47.8]} 66... Kd6 {[%clk 0:02:09.4]} 67. Nxf4+ {[%clk 0:01:46.1]}
67... Ke7 {[%clk 0:02:10]} 68. Qe5+ {[%clk 0:01:45.6]} 68... Be6 {[%clk
0:02:09]} 69. Nxe6 {[%clk 0:01:46]} 69... fxe6 {[%clk 0:02:10.9]} 70. h7 {[%clk
0:01:46.9]} 70... c3 {[%clk 0:02:10.7]} 71. Qxc3 {[%clk 0:01:47]} 71... e5
{[%clk 0:02:10.7]} 72. h8=Q {[%clk 0:01:47.1]} 1-0

[Event "Un Sabato di Lampo"]
[Site "Chess.com"]
[Date "2020.04.11"]
[Round "3"]
[White "markk000"]
[Black "crippo"]
[Result "1-0"]
[WhiteElo "1571"]
[BlackElo "1545"]
[TimeControl "300+2"]
[EndTime "6:33:49 PDT"]
[Termination "markk000 ha vinto per scaccomatto"]

1. d4 {[%clk 0:05:01.9]} 1... e5 {[%clk 0:05:01.9]} 2. c3 {[%clk 0:04:59.4]}
2... exd4 {[%clk 0:05:02.8]} 3. cxd4 {[%clk 0:05:01.3]} 3... d5 {[%clk
0:05:03.5]} 4. Nc3 {[%clk 0:05:01.2]} 4... Nf6 {[%clk 0:05:02.3]} 5. Bg5 {[%clk
0:05:01.3]} 5... c6 {[%clk 0:05:03.4]} 6. Nf3 {[%clk 0:05:01.9]} 6... Be7 {[%clk
0:05:04.4]} 7. e3 {[%clk 0:05:01.9]} 7... Bg4 {[%clk 0:05:03]} 8. Be2 {[%clk
0:05:02.6]} 8... O-O {[%clk 0:05:01.6]} 9. O-O {[%clk 0:05:02.4]} 9... Nbd7
{[%clk 0:05:01.7]} 10. h3 {[%clk 0:04:56.6]} 10... Bh5 {[%clk 0:05:01.8]} 11.
Nd2 {[%clk 0:04:53]} 11... Bg6 {[%clk 0:05:02.4]} 12. Nb3 {[%clk 0:04:41.7]}
12... h6 {[%clk 0:05:01.9]} 13. Bf4 {[%clk 0:04:36.7]} 13... Ne4 {[%clk
0:04:58.9]} 14. Rc1 {[%clk 0:04:27.3]} 14... Bg5 {[%clk 0:04:39.8]} 15. Bxg5
{[%clk 0:04:19.8]} 15... Nxg5 {[%clk 0:04:38]} 16. Bg4 {[%clk 0:04:16.1]} 16...
Nf6 {[%clk 0:04:28.9]} 17. Nc5 {[%clk 0:04:13.8]} 17... Rb8 {[%clk 0:04:23.1]}
18. h4 {[%clk 0:03:39.2]} 18... Nge4 {[%clk 0:04:20.7]} 19. N3xe4 {[%clk
0:03:37.8]} 19... Bxe4 {[%clk 0:04:18.7]} 20. Bf3 {[%clk 0:03:31.1]} 20... Nd7
{[%clk 0:04:07.4]} 21. Bxe4 {[%clk 0:03:29.3]} 21... Nxc5 {[%clk 0:04:07.1]} 22.
Bxd5 {[%clk 0:03:20.1]} 22... Ne6 {[%clk 0:03:40.6]} 23. Bxe6 {[%clk 0:03:19]}
23... fxe6 {[%clk 0:03:41.3]} 24. Qg4 {[%clk 0:03:17.6]} 24... Qd6 {[%clk
0:03:41.4]} 25. e4 {[%clk 0:03:10.9]} 25... Rf4 {[%clk 0:03:40]} 26. Qg3 {[%clk
0:03:00.4]} 26... Rbf8 {[%clk 0:03:37.6]} 27. Rcd1 {[%clk 0:02:55.6]} 27... Qe7
{[%clk 0:03:36.8]} 28. f3 {[%clk 0:02:46.8]} 28... Rxh4 {[%clk 0:03:36]} 29. d5
{[%clk 0:02:35.5]} 29... exd5 {[%clk 0:03:31.7]} 30. exd5 {[%clk 0:02:37.4]}
30... cxd5 {[%clk 0:03:17.6]} 31. Rfe1 {[%clk 0:02:36.8]} 31... Qd8 {[%clk
0:02:59.3]} 32. Rxd5 {[%clk 0:02:34.9]} 32... Qxd5 {[%clk 0:02:59.2]} 33. Qxh4
{[%clk 0:02:35.8]} 33... Qc5+ {[%clk 0:02:59.6]} 34. Qf2 {[%clk 0:02:33.7]}
34... Qd5 {[%clk 0:02:56.1]} 35. b3 {[%clk 0:02:28.2]} 35... a6 {[%clk
0:02:54.6]} 36. Qe2 {[%clk 0:02:27]} 36... Qd4+ {[%clk 0:02:47.9]} 37. Qe3
{[%clk 0:02:20.2]} 37... Qxe3+ {[%clk 0:02:26.4]} 38. Rxe3 {[%clk 0:02:22.1]}
38... Rf7 {[%clk 0:02:27.5]} 39. Kf2 {[%clk 0:02:20.3]} 39... Rc7 {[%clk
0:02:27.9]} 40. Re2 {[%clk 0:02:20.9]} 40... Kf7 {[%clk 0:02:28.3]} 41. g4
{[%clk 0:02:21.6]} 41... Kg6 {[%clk 0:02:29.1]} 42. Kg3 {[%clk 0:02:22.8]} 42...
Kh7 {[%clk 0:02:28.8]} 43. Re3 {[%clk 0:02:20.7]} 43... g5 {[%clk 0:02:28.9]}
44. a4 {[%clk 0:02:21.5]} 44... Kg7 {[%clk 0:02:20.6]} 45. Rd3 {[%clk
0:02:18.6]} 45... Rf7 {[%clk 0:02:18.1]} 46. Rd6 {[%clk 0:02:15.8]} 46... Rc7
{[%clk 0:02:17.7]} 47. Rd3 {[%clk 0:02:16.4]} 47... b5 {[%clk 0:02:16.1]} 48.
axb5 {[%clk 0:02:13.7]} 48... axb5 {[%clk 0:02:17.1]} 49. Rd5 {[%clk 0:02:15.2]}
49... Rb7 {[%clk 0:02:17.8]} 50. b4 {[%clk 0:02:15]} 50... Rb6 {[%clk
0:02:18.9]} 51. Rf5 {[%clk 0:02:14.5]} 51... Kg6 {[%clk 0:02:19.8]} 52. Rd5
{[%clk 0:02:13.1]} 52... Kf6 {[%clk 0:02:20.6]} 53. Rf5+ {[%clk 0:02:14.1]}
53... Ke6 {[%clk 0:02:21.7]} 54. f4 {[%clk 0:02:07.5]} 54... gxf4+ {[%clk
0:02:19.1]} 55. Kxf4 {[%clk 0:02:09.4]} 55... Rb7 {[%clk 0:02:07.1]} 56. Rh5
{[%clk 0:02:09.3]} 56... Rd7 {[%clk 0:01:55.5]} 57. Rxh6+ {[%clk 0:02:05.7]}
57... Kd5 {[%clk 0:01:55.7]} 58. Rh1 {[%clk 0:01:58.3]} 58... Kc4 {[%clk
0:01:55.9]} 59. Rb1 {[%clk 0:01:57.4]} 59... Rf7+ {[%clk 0:01:55.6]} 60. Kg5
{[%clk 0:01:55.7]} 60... Rf2 {[%clk 0:01:54.5]} 61. Kg6 {[%clk 0:01:55.4]} 61...
Rg2 {[%clk 0:01:52.6]} 62. g5 {[%clk 0:01:56.3]} 62... Kd5 {[%clk 0:01:50.1]}
63. Kf6 {[%clk 0:01:54.9]} 63... Rf2+ {[%clk 0:01:50]} 64. Kg7 {[%clk
0:01:52.3]} 64... Ke6 {[%clk 0:01:49.6]} 65. g6 {[%clk 0:01:52.6]} 65... Kf5
{[%clk 0:01:50.1]} 66. Kh7 {[%clk 0:01:49.1]} 66... Rh2+ {[%clk 0:01:50.7]} 67.
Kg7 {[%clk 0:01:50.2]} 67... Rf2 {[%clk 0:01:51.3]} 68. Rc1 {[%clk 0:01:48.3]}
68... Ke6 {[%clk 0:01:44]} 69. Rc5 {[%clk 0:01:47.5]} 69... Rf5 {[%clk
0:01:41.8]} 70. Rxf5 {[%clk 0:01:47.4]} 70... Kxf5 {[%clk 0:01:42.7]} 71. Kf7
{[%clk 0:01:49.3]} 71... Ke5 {[%clk 0:01:43.5]} 72. g7 {[%clk 0:01:50.5]} 72...
Kd4 {[%clk 0:01:45.1]} 73. g8=Q {[%clk 0:01:51.2]} 73... Kc4 {[%clk 0:01:47]}
74. Qg1 {[%clk 0:01:52.6]} 74... Kxb4 {[%clk 0:01:48.9]} 75. Qb1+ {[%clk
0:01:53.9]} 75... Ka4 {[%clk 0:01:50.7]} 76. Ke6 {[%clk 0:01:55.8]} 76... b4
{[%clk 0:01:52]} 77. Kd5 {[%clk 0:01:57.7]} 77... b3 {[%clk 0:01:53.2]} 78. Kc4
{[%clk 0:01:58.9]} 78... Ka3 {[%clk 0:01:54.8]} 79. Qxb3# {[%clk 0:01:59.1]} 1-0

[Event "Un Sabato di Lampo"]
[Site "Chess.com"]
[Date "2020.04.11"]
[Round "4"]
[White "mr6701"]
[Black "SpessoInstabile"]
[Result "1-0"]
[WhiteElo "2092"]
[BlackElo "1311"]
[TimeControl "300+2"]
[EndTime "6:36:48 PDT"]
[Termination "mr6701 ha vinto per scaccomatto"]

1. e4 {[%clk 0:05:01.9]} 1... c5 {[%clk 0:04:59.5]} 2. d4 {[%clk 0:05:03.8]}
2... cxd4 {[%clk 0:04:59.8]} 3. c3 {[%clk 0:05:05.1]} 3... Nc6 {[%clk
0:04:59.2]} 4. cxd4 {[%clk 0:05:05.6]} 4... e6 {[%clk 0:04:59.9]} 5. Nf3 {[%clk
0:05:06.6]} 5... d6 {[%clk 0:05:01]} 6. Nc3 {[%clk 0:05:05.4]} 6... a6 {[%clk
0:05:02.3]} 7. Bd3 {[%clk 0:05:05.6]} 7... Qc7 {[%clk 0:05:03.6]} 8. O-O {[%clk
0:05:06.2]} 8... h6 {[%clk 0:05:04.8]} 9. Bf4 {[%clk 0:05:07.1]} 9... Nf6 {[%clk
0:05:04.6]} 10. Rc1 {[%clk 0:05:08.6]} 10... b5 {[%clk 0:05:04.1]} 11. Nd5
{[%clk 0:05:09.1]} 11... exd5 {[%clk 0:05:03.4]} 12. e5 {[%clk 0:05:09.3]} 12...
dxe5 {[%clk 0:05:01.3]} 13. Bxe5 {[%clk 0:05:10.1]} 13... Nxe5 {[%clk
0:05:01.7]} 14. Rxc7 {[%clk 0:05:09.8]} 14... Nxf3+ {[%clk 0:05:01.8]} 15. Qxf3
{[%clk 0:05:10.3]} 15... Bd6 {[%clk 0:05:00.2]} 16. Rc6 {[%clk 0:05:06.7]} 16...
Be7 {[%clk 0:04:39.9]} 17. Re1 {[%clk 0:05:06.6]} 17... Bd7 {[%clk 0:04:37.5]}
18. Rc7 {[%clk 0:05:02.2]} 18... Rd8 {[%clk 0:04:37.2]} 19. Qe2 {[%clk
0:04:46.7]} 19... Be6 {[%clk 0:04:35.8]} 20. f4 {[%clk 0:04:48.1]} 20... Bg4
{[%clk 0:04:23.2]} 21. Qe5 {[%clk 0:04:43.7]} 21... Rd7 {[%clk 0:04:18.1]} 22.
Rxd7 {[%clk 0:04:40.9]} 22... Nxd7 {[%clk 0:04:18.7]} 23. Qxe7# {[%clk
0:04:41.8]} 1-0

[Event "Un Sabato di Lampo"]
[Site "Chess.com"]
[Date "2020.04.11"]
[Round "4"]
[White "markk000"]
[Black "BungalowBill"]
[Result "1-0"]
[WhiteElo "1586"]
[BlackElo "1642"]
[TimeControl "300+2"]
[EndTime "6:39:03 PDT"]
[Termination "markk000 ha vinto per scaccomatto"]

1. d4 {[%clk 0:05:01.9]} 1... f5 {[%clk 0:05:00]} 2. c4 {[%clk 0:05:03]} 2...
Nf6 {[%clk 0:05:00.9]} 3. Nc3 {[%clk 0:05:04.5]} 3... g6 {[%clk 0:05:02.2]} 4.
Bg5 {[%clk 0:05:05.4]} 4... Bg7 {[%clk 0:05:03.5]} 5. Qd2 {[%clk 0:05:06.6]}
5... h6 {[%clk 0:05:01.8]} 6. Bxf6 {[%clk 0:04:46.6]} 6... Bxf6 {[%clk
0:05:02.2]} 7. Nf3 {[%clk 0:04:45.4]} 7... d6 {[%clk 0:05:01.7]} 8. e4 {[%clk
0:04:44.4]} 8... Nc6 {[%clk 0:04:34.6]} 9. d5 {[%clk 0:04:39.3]} 9... Ne5 {[%clk
0:04:30.2]} 10. Nxe5 {[%clk 0:04:36.1]} 10... dxe5 {[%clk 0:04:22.1]} 11. exf5
{[%clk 0:04:34.6]} 11... Bxf5 {[%clk 0:04:21.6]} 12. Bd3 {[%clk 0:04:35.1]}
12... e4 {[%clk 0:04:21.7]} 13. Bxe4 {[%clk 0:04:31.8]} 13... Bxc3 {[%clk
0:04:19.9]} 14. Qxc3 {[%clk 0:04:29.2]} 14... Rf8 {[%clk 0:04:14.1]} 15. Bxf5
{[%clk 0:04:28.9]} 15... Rxf5 {[%clk 0:04:13.8]} 16. Qg7 {[%clk 0:04:24.7]}
16... Qd6 {[%clk 0:04:06.7]} 17. O-O {[%clk 0:04:19.3]} 17... O-O-O {[%clk
0:04:05.8]} 18. Rfe1 {[%clk 0:04:16.5]} 18... Re8 {[%clk 0:03:54]} 19. h3 {[%clk
0:04:09.2]} 19... Qf4 {[%clk 0:03:47.6]} 20. Rf1 {[%clk 0:03:57.6]} 20... Rf7
{[%clk 0:03:07.3]} 21. Qxg6 {[%clk 0:03:45.5]} 21... Rf6 {[%clk 0:02:57.2]} 22.
Qxe8# {[%clk 0:03:42.6]} 1-0

[Event "Un Sabato di Lampo"]
[Site "Chess.com"]
[Date "2020.04.11"]
[Round "4"]
[White "Delsoldato03"]
[Black "MarcoCiva"]
[Result "1-0"]
[WhiteElo "1076"]
[BlackElo "1388"]
[TimeControl "300+2"]
[EndTime "6:39:09 PDT"]
[Termination "Delsoldato03 ha vinto per abbandono"]

1. d4 {[%clk 0:05:01.9]} 1... Nf6 {[%clk 0:04:59.8]} 2. c4 {[%clk 0:05:02.5]}
2... e6 {[%clk 0:05:00.2]} 3. Nf3 {[%clk 0:04:55.6]} 3... d5 {[%clk 0:05:01]} 4.
Bg5 {[%clk 0:04:50.2]} 4... Bb4+ {[%clk 0:05:00.8]} 5. Nc3 {[%clk 0:04:48.6]}
5... O-O {[%clk 0:05:01.2]} 6. a3 {[%clk 0:04:49]} 6... Bxc3+ {[%clk 0:04:54.8]}
7. bxc3 {[%clk 0:04:49.3]} 7... Nbd7 {[%clk 0:04:51.8]} 8. e3 {[%clk 0:04:41.5]}
8... b6 {[%clk 0:04:52.6]} 9. cxd5 {[%clk 0:04:39.2]} 9... exd5 {[%clk
0:04:51.6]} 10. Bd3 {[%clk 0:04:32.2]} 10... c5 {[%clk 0:04:52.2]} 11. O-O
{[%clk 0:04:14.4]} 11... cxd4 {[%clk 0:04:49.6]} 12. cxd4 {[%clk 0:04:13.3]}
12... h6 {[%clk 0:04:50.3]} 13. Bxf6 {[%clk 0:04:08.9]} 13... Nxf6 {[%clk
0:04:50.3]} 14. Qc2 {[%clk 0:03:54.6]} 14... a5 {[%clk 0:04:46.9]} 15. Rac1
{[%clk 0:03:54.1]} 15... Ba6 {[%clk 0:04:46.7]} 16. Bxa6 {[%clk 0:03:47.8]}
16... Rxa6 {[%clk 0:04:46.5]} 17. Ne5 {[%clk 0:03:45.9]} 17... Ne4 {[%clk
0:04:40]} 18. f3 {[%clk 0:03:27.7]} 18... Nd6 {[%clk 0:04:35.8]} 19. Qc6 {[%clk
0:03:08]} 19... Nc4 {[%clk 0:03:57.2]} 20. Nxc4 {[%clk 0:03:06.4]} 20... dxc4
{[%clk 0:03:57.2]} 21. Qxc4 {[%clk 0:03:07.8]} 21... Qg5 {[%clk 0:03:50]} 22.
Qxa6 {[%clk 0:03:01]} 22... Qxe3+ {[%clk 0:03:49.1]} 23. Kh1 {[%clk 0:03:01]}
23... Qxd4 {[%clk 0:03:50.1]} 1-0

[Event "Un Sabato di Lampo"]
[Site "Chess.com"]
[Date "2020.04.11"]
[Round "4"]
[White "crippo"]
[Black "SanSecondoPR"]
[Result "1-0"]
[WhiteElo "1548"]
[BlackElo "1311"]
[TimeControl "300+2"]
[EndTime "6:43:59 PDT"]
[Termination "crippo ha vinto per tempo"]

1. e4 {[%clk 0:05:01.9]} 1... e5 {[%clk 0:04:59]} 2. Nf3 {[%clk 0:05:01.9]} 2...
Nc6 {[%clk 0:04:59.1]} 3. Bc4 {[%clk 0:05:02.7]} 3... Nf6 {[%clk 0:04:58]} 4. d3
{[%clk 0:05:03.6]} 4... d5 {[%clk 0:04:55.7]} 5. exd5 {[%clk 0:05:03.6]} 5...
Nxd5 {[%clk 0:04:55.6]} 6. Nc3 {[%clk 0:05:01.8]} 6... Nxc3 {[%clk 0:04:42.4]}
7. bxc3 {[%clk 0:05:01.6]} 7... Be7 {[%clk 0:04:40.3]} 8. O-O {[%clk 0:04:57.6]}
8... O-O {[%clk 0:04:39.7]} 9. Re1 {[%clk 0:04:51.5]} 9... Bg4 {[%clk 0:04:32]}
10. h3 {[%clk 0:04:47.9]} 10... Bh5 {[%clk 0:04:30.6]} 11. g4 {[%clk 0:04:47.5]}
11... Bg6 {[%clk 0:04:30.3]} 12. Nxe5 {[%clk 0:04:47.2]} 12... Nxe5 {[%clk
0:04:27.4]} 13. Rxe5 {[%clk 0:04:46.9]} 13... Bd6 {[%clk 0:04:23.8]} 14. Re1
{[%clk 0:04:45.3]} 14... Qh4 {[%clk 0:04:11.7]} 15. Qf3 {[%clk 0:04:44.9]} 15...
Rfe8 {[%clk 0:03:59]} 16. Bd2 {[%clk 0:04:44.7]} 16... h5 {[%clk 0:03:27.3]} 17.
Rab1 {[%clk 0:04:30.3]} 17... hxg4 {[%clk 0:03:19.3]} 18. Qxg4 {[%clk
0:04:30.4]} 18... Qd8 {[%clk 0:03:01.3]} 19. Bg5 {[%clk 0:04:25.7]} 19... Rxe1+
{[%clk 0:02:37.7]} 20. Rxe1 {[%clk 0:04:23.3]} 20... Qf8 {[%clk 0:02:36.8]} 21.
Bh4 {[%clk 0:04:20]} 21... Kh8 {[%clk 0:02:22]} 22. Bg3 {[%clk 0:04:10.5]} 22...
Bh7 {[%clk 0:02:06.6]} 23. h4 {[%clk 0:04:02.1]} 23... f5 {[%clk 0:02:02.5]} 24.
Qf3 {[%clk 0:03:55]} 24... f4 {[%clk 0:01:58.8]} 25. Bh2 {[%clk 0:03:54.9]}
25... Qf5 {[%clk 0:01:41.6]} 26. Be6 {[%clk 0:03:47.2]} 26... Qg6+ {[%clk
0:01:38.9]} 27. Bg4 {[%clk 0:03:40.6]} 27... Rf8 {[%clk 0:01:27.4]} 28. h5
{[%clk 0:03:27.4]} 28... Qf6 {[%clk 0:01:23]} 29. d4 {[%clk 0:03:24.1]} 29...
Qf7 {[%clk 0:00:58.1]} 30. Be6 {[%clk 0:02:48.9]} 30... Qe8 {[%clk 0:00:39.7]}
31. c4 {[%clk 0:02:44]} 31... Bf5 {[%clk 0:00:21.1]} 32. d5 {[%clk 0:02:42.2]}
32... Bb4 {[%clk 0:00:14.3]} 33. Re2 {[%clk 0:02:40.5]} 33... Bxe6 {[%clk
0:00:08.2]} 34. Rxe6 {[%clk 0:02:40.3]} 1-0